bitfinex-derivatives/quotes_ETHF0:USTF0_20250110
["timestamp","ask_amount","ask_price","bid_price","bid_amount"]
[1736520353018,3.2078,3270.4,3269.4,3.2078]
[1736520353219,0.30582,3270.1,3269.7,0.30584]
[1736520353427,3.2078,3270.4,3269.6,3.3214621]
[1736520353619,0.3058,3270.3,3270.1,40.8]
[1736520353815,1.0231,3271.1,3270.2,3.2078]
[1736520354024,0.30578,3270.5,3270.2,0.3058]
[1736520354229,3.2078,3270.4,3269.3,3.2078]
[1736520354526,2.1298,3271.3,3269.7,3.2078]
[1736520354527,3.2078,3270.8,3269.7,3.2078]
[1736520354823,3.2078,3271.2,3270.3,0.30579]
[1736520355125,3.2078,3271.2,3270.2,0.3058]
[1736520355126,1.07001,3271.2,3270.2,0.3058]
[1736520355318,3.2078,3271.3,3269.8,40.8]
[1736520355527,3.2078,3271.8,3270.5,3.2078]
[1736520355725,0.76417,3271.7,3270.6,3.2078]
[1736520356026,0.76417,3271.7,3270.9,0.30574]
[1736520356027,0.30572,3271.2,3270.9,0.30574]
[1736520356225,0.30568,3271.6,3270.8,0.30575]
[1736520356426,3.2078,3271.8,3270.6,3.2078]
[1736520356730,0.3057,3271.4,3270.6,7.2936921]
[1736520356920,0.30569,3271.5,3271.3,0.3057]
[1736520357524,3.51345,3271.9,3271.1,1.07003]
[1736520357724,3.2078,3271.9,3271.0,3.2078]
[1736520357932,3.2078,3272.1,3271.3,3.2078]
[1736520358232,0.30562,3272.2,3271.9,0.30564]
[1736520358427,0.30561,3272.3,3272.0,0.30563]
[1736520358623,3.97172,3272.8,3272.5,0.30559]
[1736520358624,0.30558,3272.7,3272.5,0.30559]
[1736520358820,0.30558,3272.7,3271.6,3.3214621]
[1736520358821,3.2078,3272.8,3271.7,3.2078]
[1736520359132,3.2078,3272.4,3271.7,3.2078]
[1736520359327,3.2078,3272.5,3271.4,3.2078]
[1736520359527,3.2078,3272.6,3271.6,3.3214621]
[1736520359731,0.30562,3272.2,3271.9,0.30564]
[1736520359928,3.2078,3273.0,3271.6,3.3214621]
[1736520360134,0.30563,3272.2,3271.9,0.30564]
[1736520360327,3.2078,3272.9,3272.0,40.8]
[1736520360629,3.2078,3272.9,3272.1,0.30562]
[1736520360822,0.30562,3272.2,3272.0,40.8]
[1736520361024,3.2078,3272.1,3271.2,3.2078]
[1736520361229,3.2078,3272.7,3271.2,3.2078]
[1736520361430,3.2078,3271.9,3271.2,3.2078]
[1736520361631,3.2078,3271.5,3270.7,3.2078]
[1736520361930,0.30575,3270.8,3270.4,0.30578]
[1736520362138,3.2078,3271.1,3270.2,40.8]
[1736520362629,3.2078,3271.1,3270.2,3.2078]
[1736520362931,0.30566,3271.8,3271.4,0.30569]
[1736520363534,3.2078,3271.7,3271.1,40.8]
[1736520363734,3.2078,3271.7,3270.8,0.30574]
[1736520363934,0.76416,3271.8,3270.1,3.57225498]
[1736520363935,3.2078,3271.1,3270.1,3.57225498]
[1736520364136,0.30573,3271.0,3270.1,3.57225498]
[1736520364335,3.2078,3271.1,3270.3,3.2078]
[1736520364735,0.30574,3271.0,3270.6,0.30576]
[1736520364931,0.30566,3271.8,3271.4,0.30568]
[1736520365138,3.2078,3271.5,3271.1,3.2078]
[1736520365436,3.2078,3271.3,3270.1,3.3214621]
[1736520365736,3.2078,3270.3,3269.1,3.2078]
[1736520365935,3.2078,3270.2,3269.2,3.2078]
[1736520366333,0.76451,3270.3,3268.6,0.24217235]
[1736520366334,3.2078,3269.4,3268.6,0.24217235]
[1736520366539,3.2078,3269.4,3268.4,3.2078]
[1736520366736,3.2078,3269.0,3268.4,3.2078]
[1736520367039,3.2078,3269.0,3267.9,0.76505]
[1736520367040,3.2078,3269.5,3268.8,3.2078]
[1736520367432,1.0391,3270.8,3268.8,3.2078]
[1736520367433,3.2078,3270.3,3268.8,3.2078]
[1736520367635,3.2078,3269.7,3268.9,3.2078]
[1736520368133,0.30587,3269.6,3269.2,0.3059]
[1736520368335,3.2078,3270.1,3268.9,3.2078]
[1736520368532,0.30586,3269.6,3269.2,0.30589]
[1736520368928,0.30587,3269.5,3268.9,3.2078]
[1736520369128,3.2078,3270.1,3269.1,3.3214621]
[1736520369333,3.2078,3270.1,3269.3,3.2078]
[1736520369831,3.2078,3270.6,3270.5,0.30578]
[1736520370029,3.2078,3270.6,3269.8,0.76462]
[1736520370030,1.0251,3271.2,3270.1,6.5292621]
[1736520370237,6.02179,3272.1,3270.3,3.2078]
[1736520370431,0.76411,3272.0,3270.7,3.2078]
[1736520371036,3.2078,3271.3,3270.3,4.9958]
[1736520371238,3.2078,3271.3,3269.6,0.76464]
[1736520371239,0.30579,3270.4,3270.0,0.30582]
[1736520371541,3.2078,3270.6,3269.8,4.2137]
[1736520371734,0.30582,3270.1,3269.8,3.51364]
[1736520371936,3.2078,3270.6,3269.8,3.2078]
[1736520371937,0.30583,3269.9,3269.8,3.2078]
[1736520372242,0.30582,3270.2,3269.7,3.51365]
[1736520372446,3.2078,3270.6,3269.7,3.2078]
[1736520372636,0.30579,3270.4,3270.0,0.30582]
[1736520372839,3.2078,3271.1,3270.1,6.5292621]
[1736520373143,0.30575,3270.8,3270.5,3.2078]
[1736520373433,0.30575,3270.8,3270.4,0.30578]
[1736520373434,3.2078,3270.7,3269.8,40.8]
[1736520373630,3.3214621,3271.4,3269.8,40.8]
[1736520373631,0.30583,3269.9,3269.8,40.8]
[1736520373837,0.30595,3268.7,3268.3,0.30598]
[1736520374036,0.30596,3268.6,3268.0,11.59216304]
[1736520374236,0.30596,3268.6,3268.5,45.43686521]
[1736520374642,0.30596,3268.6,3268.5,40.8]
[1736520374832,3.2078,3268.7,3268.5,40.8]
[1736520375042,1.0155,3269.4,3268.5,44.0078]
[1736520375335,3.2078,3270.0,3269.0,3.2078]
[1736520375841,0.3059,3269.3,3269.0,3.2078]
[1736520376048,3.2078,3269.8,3268.7,3.2078]
[1736520377034,0.3059,3269.2,3268.9,0.30592]
[1736520377240,3.2078,3269.8,3268.7,3.2078]
[1736520377440,0.30594,3268.9,3268.8,3.2078]
[1736520377739,0.30594,3268.8,3268.6,3.2078]
[1736520377945,0.30594,3268.9,3268.6,3.51375]
[1736520378336,0.30596,3268.6,3268.5,40.8]
[1736520379338,0.30598,3268.3,3268.2,3.2078]
[1736520379548,3.2078,3269.0,3268.2,3.2078]
[1736520379842,0.30598,3268.3,3268.2,3.2078]
[1736520380143,0.30603,3267.8,3267.7,3.2078]
[1736520380447,0.30603,3267.8,3267.7,40.8]
[1736520382048,3.2078,3267.8,3266.5,3.3214621]
[1736520382241,3.2078,3267.8,3267.4,0.30607]
[1736520382242,0.30604,3267.7,3267.4,0.30607]
[1736520382445,0.30604,3267.7,3266.5,3.56869388]
[1736520382446,4.2413,3268.4,3267.6,3.2078]
[1736520382647,0.30603,3267.9,3267.6,3.2078]
[1736520382842,0.30605,3267.6,3267.5,40.8]
[1736520383536,0.30605,3267.6,3266.9,0.30611]
[1736520383537,0.30611,3267.0,3266.9,3.2078]
[1736520383850,3.2078,3267.6,3266.9,44.0078]
[1736520384142,0.3061,3267.1,3266.9,44.0078]
[1736520384343,3.2078,3267.0,3266.0,4.63686521]
[1736520384542,3.2078,3266.6,3265.6,3.2078]
[1736520384736,0.3062,3266.1,3265.6,3.51403]
[1736520385046,0.3062,3266.0,3265.7,40.8]
[1736520385240,3.2078,3266.6,3265.7,40.8]
[1736520385446,2.7917,3266.9,3266.2,0.30617]
[1736520385447,0.30614,3266.7,3266.2,0.30617]
[1736520385644,3.2078,3266.7,3265.7,44.0078]
[1736520386040,3.97314,3266.7,3265.7,44.0078]
[1736520386241,3.2078,3266.7,3265.8,0.30621]
[1736520386546,0.30614,3266.6,3265.7,44.0078]
[1736520386738,0.30622,3265.8,3265.7,44.0078]
[1736520386938,0.30621,3265.9,3265.7,44.0078]
[1736520387145,0.30622,3265.8,3265.7,44.0078]
[1736520387341,0.30622,3265.8,3265.7,40.8]
[1736520387544,0.30628,3265.2,3264.8,3.2078]
[1736520387745,3.2078,3265.9,3264.8,3.2078]
[1736520387945,3.2078,3265.5,3264.9,40.8]
[1736520388246,0.30629,3265.0,3264.9,40.8]
[1736520388744,0.30632,3264.8,3264.3,0.54823236]
[1736520389049,0.76564,3265.5,3265.0,0.30629]
[1736520389050,0.30625,3265.5,3265.0,0.30629]
[1736520389244,0.30623,3265.7,3265.2,0.30627]
[1736520389446,0.9999,3265.8,3264.1,3.2078]
[1736520389640,3.2078,3265.4,3264.1,3.2078]
[1736520390145,3.2078,3265.4,3264.4,3.2078]
[1736520390344,0.9999,3265.8,3264.5,3.3214621]
[1736520390553,3.2078,3265.5,3264.4,3.2078]
[1736520390844,3.2078,3265.0,3263.8,3.2078]
[1736520391048,0.30636,3264.4,3263.9,0.30639]
[1736520391244,0.3063,3264.9,3263.9,0.30639]
[1736520391441,2.7843,3265.4,3264.2,3.2078]
[1736520391442,5.9921,3265.4,3264.2,3.2078]
[1736520391644,5.9921,3265.4,3264.7,0.30632]
[1736520391847,5.9921,3265.4,3264.2,3.2078]
[1736520391848,0.30633,3264.7,3264.3,0.30635]
[1736520392045,5.9921,3265.4,3263.8,0.3064]
[1736520392046,3.2078,3265.0,3263.8,0.3064]
[1736520392354,2.7843,3265.4,3263.7,1.0537]
[1736520392355,3.97356,3264.9,3263.7,1.0537]
[1736520392542,0.30637,3264.2,3263.8,0.30641]
[1736520392741,0.76579,3264.8,3263.9,41.10639]
[1736520392742,0.30636,3264.3,3263.9,41.10639]
[1736520392937,3.2078,3264.9,3263.9,44.0078]
[1736520393137,0.30637,3264.3,3263.9,44.31419]
[1736520393346,0.76568,3265.3,3263.9,40.8]
[1736520393347,3.2078,3264.4,3263.9,40.8]
[1736520393548,0.30639,3264.0,3263.9,40.8]
[1736520393746,0.30639,3264.0,3263.5,3.2078]
[1736520393747,0.30642,3263.6,3263.5,3.2078]
[1736520394245,0.30649,3262.9,3262.8,40.8]
[1736520394441,3.2078,3263.1,3262.4,0.2501613]
[1736520394642,0.30656,3262.3,3261.7,0.3066]
[1736520394842,3.2078,3263.0,3261.7,40.8]
[1736520395043,0.30653,3262.5,3261.7,0.3066]
[1736520395247,3.2078,3262.9,3262.0,3.2078]
[1736520395446,0.30649,3263.0,3262.4,3.2078]
[1736520395748,0.5,3262.5,3260.7,4.63686521]
[1736520395949,3.2078,3260.8,3260.7,4.63686521]
[1736520396445,3.51449,3260.8,3260.7,4.63686521]
[1736520396842,3.51449,3260.8,3259.6,3.44786779]
[1736520396843,3.2078,3260.8,3260.2,11.89890304]
[1736520397054,3.2078,3260.8,3260.2,0.30674]
[1736520397245,4.3383621,3261.6,3259.6,4.63686521]
[1736520397246,3.2078,3260.4,3259.6,4.63686521]
[1736520397448,3.2078,3259.8,3259.6,4.63686521]
[1736520397849,3.2078,3259.8,3259.6,4.63451482]
[1736520397850,0.30679,3259.7,3259.6,4.63451482]
[1736520398352,5.30679,3259.7,3259.6,4.63451482]
[1736520398850,1.789,3260.2,3258.4,3.2078]
[1736520399047,3.2078,3260.1,3259.5,0.3068]
[1736520399251,3.2078,3259.7,3258.3,1.0867]
[1736520399447,3.51469,3258.7,3258.0,0.30694]
[1736520399649,3.2078,3258.7,3257.9,3.2078]
[1736520399953,0.3069,3258.6,3257.5,3.2078]
[1736520400144,3.2078,3258.7,3257.5,3.2078]
[1736520400340,3.2078,3259.1,3258.5,3.2078]
[1736520400743,0.30689,3258.6,3257.8,0.30696]
[1736520400951,0.30687,3258.9,3258.2,0.30693]
[1736520401148,3.2078,3259.1,3258.2,3.2078]
[1736520401348,3.2078,3258.6,3257.8,3.2078]
[1736520401547,3.2078,3258.6,3257.3,0.30701]
[1736520401548,3.3214621,3258.5,3257.3,0.30701]
[1736520401747,0.30697,3257.8,3257.1,1.0867]
[1736520401951,0.30697,3257.8,3257.5,3.2078]
[1736520402246,0.30695,3258.0,3257.5,3.2078]
[1736520402642,3.51478,3257.7,3257.6,40.8]
[1736520402946,3.51478,3257.7,3256.9,3.51485]
[1736520403143,0.307,3257.5,3256.9,3.2078]
[1736520403343,3.2078,3257.7,3257.0,40.8]
[1736520403548,1.79,3258.6,3256.3,4.2515]
[1736520403549,3.2078,3257.1,3256.3,4.2515]
[1736520403958,3.2078,3257.1,3256.4,40.8]
[1736520404256,3.51484,3257.1,3256.4,40.8]
[1736520404455,3.2078,3257.1,3256.5,0.30708]
[1736520404645,3.2078,3257.1,3256.4,40.8]
[1736520404646,6.5292621,3258.0,3256.7,3.2078]
[1736520404845,6.5292621,3258.0,3256.4,40.8]
[1736520404846,3.2078,3258.0,3257.2,3.2078]
[1736520405049,0.30697,3257.8,3257.2,3.2078]
[1736520405351,0.307,3257.6,3257.1,3.2078]
[1736520405548,0.30698,3257.7,3257.1,3.2078]
[1736520405856,3.2078,3257.6,3256.6,3.2078]
[1736520406057,3.2078,3257.1,3256.3,4.2515]
[1736520406346,3.2078,3257.1,3256.4,0.3071]
[1736520406549,3.2078,3256.6,3256.0,0.30713]
[1736520406754,3.2078,3256.6,3255.7,3.2078]
[1736520406949,3.51489,3256.6,3255.7,3.2078]
[1736520407150,3.51488,3256.6,3255.7,3.51496]
[1736520407352,0.30715,3255.9,3255.3,1.021]
[1736520407552,3.2078,3256.4,3255.2,3.2078]
[1736520407749,0.30715,3256.0,3255.2,3.2078]
[1736520407950,3.2078,3256.4,3255.2,3.2078]
[1736520408145,3.5149,3256.4,3255.5,0.30718]
[1736520408351,3.2078,3256.4,3255.2,3.2078]
[1736520408649,0.30712,3256.2,3255.3,0.3072]
[1736520408845,3.5149,3256.4,3255.6,0.30717]
[1736520409061,3.5149,3256.4,3255.6,3.51497]
[1736520409251,3.2078,3256.4,3255.2,3.2078]
[1736520409447,3.2078,3256.0,3255.2,3.2078]
[1736520409647,0.30719,3255.5,3255.0,3.2078]
[1736520409953,0.30721,3255.3,3255.0,3.2078]
[1736520410150,3.3214621,3255.5,3255.0,3.2078]
[1736520410350,3.3214621,3256.5,3255.4,3.2078]
[1736520410654,0.30711,3256.4,3255.9,3.2078]
[1736520410846,3.2078,3256.6,3255.9,3.2078]
[1736520411055,0.3071,3256.5,3255.9,3.2078]
[1736520411255,3.2078,3256.6,3255.9,3.2078]
[1736520411651,3.6285021,3257.1,3256.4,3.2078]
[1736520411953,1.0233,3257.8,3256.9,3.2078]
[1736520412149,0.30703,3257.2,3256.9,3.2078]
[1736520412354,0.30705,3256.9,3255.6,1.767]
[1736520412551,0.30708,3256.7,3256.3,3.2078]
[1736520412760,3.3214621,3257.1,3256.4,40.8]
[1736520413262,6.5292621,3257.6,3256.9,3.2078]
[1736520413451,0.30704,3257.0,3256.9,3.2078]
[1736520413652,0.30707,3256.7,3256.5,3.2078]
[1736520413848,0.30708,3256.6,3256.1,3.2078]
[1736520414156,0.30708,3256.6,3255.5,3.2078]
[1736520414157,0.30716,3255.8,3255.5,3.2078]
[1736520414356,6.5292621,3256.6,3255.5,3.2078]
[1736520414546,0.30716,3255.8,3255.5,3.2078]
[1736520414751,0.30714,3256.0,3255.5,3.51498]
[1736520414952,0.30713,3256.1,3255.5,3.2078]
[1736520415154,0.30717,3255.7,3255.5,3.2078]
[1736520415353,0.30718,3255.6,3255.5,3.2078]
[1736520415656,3.3214621,3255.6,3255.0,3.2078]
[1736520415952,3.2078,3255.8,3255.0,44.0078]
[1736520416163,0.30716,3255.8,3255.5,3.2078]
[1736520416353,3.3214621,3256.1,3255.5,3.2078]
[1736520416354,0.30713,3256.1,3255.5,3.2078]
[1736520416556,0.30717,3255.7,3255.5,3.2078]
[1736520416756,3.3214621,3256.1,3255.1,3.2078]
[1736520416962,3.2078,3255.9,3255.1,3.2078]
[1736520417452,3.2078,3255.9,3255.5,3.2078]
[1736520417852,0.30716,3255.8,3255.5,3.2078]
[1736520418053,0.30718,3255.6,3255.5,3.2078]
[1736520418953,3.2078,3255.9,3255.1,3.2078]
[1736520419155,3.2078,3255.4,3254.6,3.2078]
[1736520419461,0.30729,3254.5,3254.1,0.30731]
[1736520419655,3.2078,3255.0,3254.4,3.2078]
[1736520420059,1.767,3255.6,3254.1,40.8]
[1736520420060,5.0884621,3255.6,3254.1,44.0078]
[1736520420254,3.2078,3255.5,3254.7,3.2078]
[1736520420460,3.3214621,3255.1,3254.1,44.0078]
[1736520420661,3.2078,3254.7,3254.1,40.8]
[1736520420860,3.2078,3254.7,3253.6,3.2078]
[1736520420861,5.0894621,3254.6,3253.6,3.2078]
[1736520421165,6.5292621,3253.9,3252.6,3.2078]
[1736520421362,0.30745,3252.7,3252.6,3.2078]
[1736520421568,1.768,3253.7,3252.6,3.2078]
[1736520421766,6.5292621,3253.9,3252.6,3.2078]
[1736520421958,6.5292621,3253.9,3252.5,3.2078]
[1736520422263,0.30745,3252.8,3252.5,3.51526]
[1736520422561,4.9758,3254.0,3252.5,3.2078]
[1736520422766,0.30728,3254.5,3254.1,0.30731]
[1736520423062,0.30728,3254.5,3252.6,40.8]
[1736520423063,0.30721,3255.2,3254.7,0.30726]
[1736520423261,3.2078,3255.3,3254.2,3.2078]
[1736520423460,3.3214621,3254.8,3254.2,3.2078]
[1736520423657,3.3214621,3254.3,3253.6,3.2078]
[1736520423963,0.30739,3253.3,3253.2,3.2078]
[1736520424163,3.3214621,3253.8,3252.6,1.04]
[1736520424469,3.2078,3253.5,3252.5,3.2078]
[1736520424958,3.3214621,3253.8,3252.9,3.2078]
[1736520425160,3.2078,3254.1,3253.3,3.2078]
[1736520425470,0.30737,3253.5,3253.4,3.2078]
[1736520425763,3.2078,3254.1,3253.4,0.30738]
[1736520425955,3.2078,3254.1,3253.8,0.30734]
[1736520426157,0.30736,3253.7,3253.6,3.2078]
[1736520426359,3.2078,3254.1,3253.4,3.2078]
[1736520426360,0.30738,3253.5,3253.4,3.2078]
[1736520427164,0.30737,3253.6,3253.4,3.2078]
[1736520427359,0.30734,3253.9,3253.6,0.30736]
[1736520427564,0.76821,3254.5,3253.4,3.2078]
[1736520427565,0.76823,3254.4,3253.4,3.2078]
[1736520427764,0.30737,3253.5,3253.4,3.2078]
[1736520428364,3.2078,3253.6,3252.5,3.2078]
[1736520428757,3.2078,3253.6,3252.4,3.2078]
[1736520429056,0.30741,3253.1,3253.0,3.2078]
[1736520429971,0.30739,3253.4,3253.0,3.2078]
[1736520430269,3.2078,3254.5,3253.1,0.76853]
[1736520430460,3.2078,3254.5,3253.8,3.2078]
[1736520430661,0.30734,3253.9,3253.8,3.2078]
[1736520430857,0.76823,3254.4,3253.6,3.2078]
[1736520431067,0.76825,3254.3,3253.8,3.2078]
[1736520431266,0.30739,3253.3,3253.2,1.0459]
[1736520431468,1.53622,3255.0,3253.2,1.0459]
[1736520431469,0.76841,3253.7,3253.2,3.2078]
[1736520431661,0.76841,3253.7,3252.3,1.0345]
[1736520431662,0.76848,3253.4,3252.4,3.51527]
[1736520431860,0.76833,3254.0,3252.9,0.30743]
[1736520432068,3.2078,3253.8,3252.8,3.2078]
[1736520432260,3.2078,3253.4,3252.4,3.2078]
[1736520432463,0.30744,3252.8,3252.4,3.51527]
[1736520432667,3.2078,3253.8,3252.5,40.8]
[1736520432872,3.3214621,3254.1,3253.2,3.2078]
[1736520433266,3.2078,3254.3,3253.6,3.51516]
[1736520433466,3.97595,3254.8,3254.0,3.2078]
[1736520433672,0.76815,3254.8,3253.5,3.2078]
[1736520433870,3.2078,3254.9,3253.9,3.2078]
[1736520434176,1.0041,3255.3,3252.7,44.31525]
[1736520434177,0.76842,3253.7,3252.7,44.31525]
[1736520434469,0.3074,3253.2,3253.1,3.2078]
[1736520434668,0.30742,3253.0,3252.8,0.30743]
[1736520434868,0.30744,3252.8,3252.7,40.8]
[1736520435067,0.30745,3252.7,3252.6,3.2078]
[1736520435465,3.2078,3253.6,3252.6,3.2078]
[1736520435774,0.30737,3253.5,3253.2,0.3074]
[1736520436075,6.5292621,3253.6,3252.7,3.2078]
[1736520436270,0.30741,3253.1,3252.8,0.30744]
[1736520436576,3.2078,3253.6,3252.7,3.2078]
[1736520436771,7.2975621,3254.2,3253.1,3.2078]
[1736520436972,6.5292621,3254.2,3253.1,3.2078]
[1736520437471,0.30741,3253.2,3253.1,3.2078]
[1736520437972,3.2078,3253.4,3252.6,3.2078]
[1736520438178,0.30745,3252.7,3252.6,3.2078]
[1736520439372,1.0757,3253.9,3253.3,0.30739]
[1736520439670,3.2078,3254.0,3252.7,3.2078]
[1736520439863,3.2078,3254.0,3253.1,3.2078]
[1736520440073,0.76835,3253.9,3252.6,3.2078]
[1736520440271,0.30744,3252.8,3252.6,3.51525]
[1736520440472,0.30745,3252.7,3252.6,3.2078]
[1736520440673,3.2078,3253.6,3252.6,2.2078]
[1736520441177,0.30741,3253.1,3252.9,0.30743]
[1736520441377,0.30744,3252.9,3252.7,0.30744]
[1736520441580,0.76844,3253.5,3252.6,2.2078]
[1736520441778,0.30745,3252.7,3252.6,2.2078]
[1736520442072,0.30753,3251.8,3251.7,3.2078]
[1736520442271,8.3214621,3252.7,3251.7,3.2078]
[1736520442272,3.2078,3252.4,3251.7,3.2078]
[1736520442575,4.2454,3253.0,3252.2,3.2078]
[1736520442768,4.2454,3253.0,3252.3,40.8]
[1736520442966,2.55077,3253.6,3252.5,0.30746]
[1736520442967,0.30745,3252.8,3252.5,0.30746]
[1736520443173,3.3214621,3253.7,3252.7,3.2078]
[1736520443469,0.30747,3252.5,3252.3,0.30748]
[1736520443666,0.76845,3253.5,3252.2,3.2078]
[1736520443667,0.30749,3252.3,3252.2,3.2078]
[1736520443867,0.30748,3252.5,3252.2,3.2078]
[1736520444076,0.30749,3252.3,3252.2,3.2078]
[1736520444380,0.76858,3252.9,3252.2,3.2078]
[1736520444575,3.2078,3252.6,3251.8,3.2078]
[1736520445075,0.30741,3253.1,3252.9,0.30742]
[1736520445275,0.76847,3253.4,3252.7,0.30745]
[1736520445482,3.2078,3253.6,3252.2,3.2078]
[1736520445675,1.53676,3253.8,3252.2,3.2078]
[1736520445676,0.30749,3252.3,3252.2,3.2078]
[1736520446081,3.2078,3253.2,3252.2,8.2078]
[1736520446381,0.76842,3253.6,3252.7,3.2078]
[1736520446577,3.2078,3253.7,3252.3,1.0584]
[1736520446774,6.5292621,3253.7,3252.6,3.2078]
[1736520446982,3.97621,3253.7,3252.6,3.2078]
[1736520447182,0.30745,3252.7,3252.6,3.2078]
[1736520447380,0.30748,3252.4,3252.3,4.2662]
[1736520447577,3.2078,3252.7,3251.9,3.2078]
[1736520447880,0.30752,3252.0,3251.9,3.2078]
[1736520448073,0.76865,3252.6,3251.5,3.2078]
[1736520448274,0.76865,3252.6,3251.7,0.30754]
[1736520448478,0.30754,3251.7,3251.6,3.2078]
[1736520449275,3.97653,3252.3,3251.6,3.2078]
[1736520449480,3.2078,3252.8,3252.0,3.2078]
[1736520449674,3.3214621,3253.7,3252.6,3.2078]
[1736520449880,3.2078,3253.8,3253.1,3.2078]
[1736520450082,0.30749,3252.4,3252.2,0.30749]
[1736520450283,0.30749,3252.3,3252.2,3.2078]
[1736520450481,0.30754,3251.8,3251.6,3.51535]
[1736520450682,0.30754,3251.7,3251.6,3.2078]
[1736520451186,3.2078,3252.2,3251.7,0.30754]
[1736520451382,0.30753,3251.9,3251.3,3.2078]
[1736520451588,3.2078,3252.8,3251.7,3.2078]
[1736520451885,0.30746,3252.6,3252.5,3.2078]
[1736520452180,0.30745,3252.7,3252.5,3.51526]
[1736520452383,3.2078,3253.3,3252.5,3.2078]
[1736520453191,0.30746,3252.6,3252.5,3.2078]
[1736520453786,3.2078,3253.3,3252.5,3.2078]
[1736520453986,0.30746,3252.6,3252.5,3.2078]
[1736520454382,3.3214621,3253.2,3252.2,3.2078]
[1736520454686,0.30752,3252.0,3251.9,3.2078]
[1736520454880,3.2078,3252.5,3251.5,3.2078]
[1736520455076,0.30755,3251.6,3251.5,3.2078]
[1736520455484,0.30748,3252.4,3252.0,0.30751]
[1736520455688,2.54865,3252.7,3251.9,3.2078]
[1736520455987,0.30752,3252.0,3251.8,0.30753]
[1736520456184,3.2078,3252.5,3251.5,3.2078]
[1736520456383,0.30755,3251.6,3251.5,3.2078]
[1736520456688,3.2078,3252.5,3251.5,3.2078]
[1736520456987,0.76866,3252.6,3251.6,3.2078]
[1736520457288,1.07605,3252.8,3252.2,0.30749]
[1736520457478,3.9764,3252.9,3252.0,3.2078]
[1736520457479,3.2078,3252.9,3252.0,3.2078]
[1736520457688,3.2078,3252.9,3251.0,1.53803]
[1736520457689,3.2078,3253.3,3252.4,3.2078]
[1736520457983,0.30747,3252.5,3252.4,3.2078]
[1736520458187,0.30747,3252.5,3252.4,44.0078]
[1736520458386,0.30747,3252.5,3252.4,40.8]
[1736520458788,0.30744,3252.8,3252.6,0.30745]
[1736520458979,3.2078,3253.3,3252.0,3.2078]
[1736520459179,3.2078,3253.3,3251.5,1.78]
[1736520459180,0.30747,3252.6,3252.4,3.51527]
[1736520459386,0.76856,3253.0,3252.2,0.30749]
[1736520459590,4.40408,3253.6,3251.7,3.2078]
[1736520459591,3.2078,3252.5,3251.7,3.2078]
[1736520459883,0.76878,3252.1,3251.3,3.2078]
[1736520460083,0.30755,3251.7,3251.5,0.30756]
[1736520460288,0.76872,3252.4,3251.6,0.30755]
[1736520460483,3.2078,3252.5,3251.3,3.2078]
[1736520460691,0.30752,3251.9,3251.4,0.30757]
[1736520460881,0.30755,3251.7,3251.5,0.30756]
[1736520461082,0.30757,3251.4,3251.3,3.2078]
[1736520461281,0.30755,3251.6,3251.3,3.2078]
[1736520461487,0.30755,3251.6,3251.5,0.30756]
[1736520461686,0.30758,3251.4,3251.2,0.30759]
[1736520461880,0.76882,3251.9,3251.3,3.2078]
[1736520462084,0.30757,3251.5,3251.3,3.2078]
[1736520462387,3.3214621,3251.6,3250.7,3.2078]
[1736520462588,0.76909,3250.8,3250.0,6.96365614]
[1736520462790,0.3077,3250.1,3250.0,6.96365614]
[1736520463288,0.3077,3250.1,3249.7,52.40609357]
[1736520463289,0.30768,3250.3,3249.7,44.0078]
[1736520463481,0.30768,3250.3,3250.0,0.3077]
[1736520463682,3.2078,3250.8,3249.8,3.2078]
[1736520463883,0.30767,3250.5,3250.3,3.2078]
[1736520464182,3.2078,3250.8,3250.3,3.2078]
[1736520464382,0.30767,3250.4,3250.3,3.2078]
[1736520465288,0.76893,3251.5,3250.3,3.2078]
[1736520465489,4.64591937,3251.7,3251.1,3.2078]
[1736520465789,11.17518147,3251.6,3250.9,3.2078]
[1736520465987,0.30756,3251.5,3251.0,0.3076]
[1736520466187,4.64591937,3251.6,3250.8,3.2078]
[1736520466488,0.30757,3251.5,3251.2,3.51539]
[1736520466793,3.2078,3252.2,3251.2,3.2078]
[1736520467288,0.30754,3251.8,3251.6,3.2078]
[1736520467493,0.30754,3251.7,3251.6,3.2078]
[1736520467890,0.30763,3250.8,3250.6,3.2078]
[1736520468192,3.2078,3251.8,3250.7,40.8]
[1736520468400,0.30764,3250.8,3250.6,3.2078]
[1736520468590,0.30764,3250.7,3250.3,8.04925614]
[1736520468790,0.30767,3250.4,3250.3,6.96365614]
[1736520469089,3.2078,3251.0,3250.3,7.27132614]
[1736520469297,3.2078,3251.0,3250.5,3.2078]
[1736520469588,5.41480937,3251.7,3250.5,3.2078]
[1736520469589,5.41480937,3251.7,3250.6,0.30765]
[1736520469791,4.64591937,3251.7,3251.0,3.2078]
[1736520469988,4.64591937,3251.7,3251.3,0.30758]
[1736520470288,0.30756,3251.5,3251.4,3.2078]
[1736520470792,6.5292621,3252.1,3250.9,1.0545]
[1736520470996,0.30761,3251.0,3250.9,1.0545]
[1736520471185,0.7689,3251.6,3250.9,1.36211]
[1736520471382,0.7689,3251.6,3250.8,3.2078]
[1736520471383,0.30762,3250.9,3250.8,3.2078]
[1736520471587,3.97681,3251.2,3250.3,3.2078]
[1736520471788,3.2078,3250.8,3249.9,4.2623]
[1736520471984,3.2078,3250.8,3249.9,4.57001]